Workbook

Sheet 91-ID3(TH-37)
A1: BH91-ID3 | C1: Location: | D1: Intermediate Dam South Abutment @ Stn. 0+810 | E1: Shallow Tip Elevation (m amsl): | G1: 1036.82
C2: Coordinates: | D2: 8V580359 6913723 | E2: Deep Tip Elevation (m amsl): | G2: 1028.62
A3: Surface Protector: | B3: yes | C3: Date Installed: | D3: 1991 | E3: 2004 Surface Elevation (m amsl): | G3: 1043.82
A4: Date | B4: Reading (psi) | D4: Piezometric Elevation (m amsl) | F4: Pond El. (m amsl) | G4: Comments | J4: Date
B5: Shallow | C5: Deep | D5: Shallow | E5: Deep | K5: Surface Elevation | L5: Shallow Tip Elevation | M5: Deep Tip Elevation
A6: 1991-07-01 | B6: 1.228571429 | C6: 9.714285714 | D6: =1036.82+B6*0.7 -> 1037.68 | E6: =1028.62+C6*0.7 -> 1035.42 | F6: 1042.2 | J6: 1991-07-01 | K6: 1043.82 | L6: 1036.82 | M6: 1028.62
A7: 1991-08-01 | B7: 0.04285714286 | C7: 9.4 | D7: =1036.82+B7*0.7 -> 1036.85 | E7: =1028.62+C7*0.7 -> 1035.2 | F7: 1042.2 | J7: 2012-12-25 | K7: 1043.82 | L7: 1036.82 | M7: 1028.62
A8: 1991-09-01 | C8: 8.6 | D8: =1036.82+B8*0.7 -> 1036.82 | E8: 1034.64 | F8: 1042.2
A9: 1992-02-01
A10: 1992-04-01
A11: 1992-06-01 | B11: 3.442857143 | C11: 13.45714286 | D11: =1036.82+B11*0.7 -> 1039.23 | E11: 1038.04 | F11: 1047.7
A12: 1992-09-01 | B12: 1.1 | C12: 10.51428571 | D12: 1037.59 | E12: 1035.98 | F12: 1047.7
A13: 1994-05-01 | B13: 0.2 | C13: 10.7 | D13: 1036.96 | E13: 1036.11 | F13: 1047.7
A14: 1994-09-01 | B14: 0.4 | C14: 9.1 | D14: 1037.1 | E14: 1034.99 | F14: 1047.7
A15: 1995-09-01 | B15: 0 | C15: 9.5 | D15: 1036.82 | E15: 1035.27 | F15: 1047.7
A16: 1996-10-01 | B16: 0.1 | C16: 7.5 | D16: 1036.89 | E16: 1033.87 | F16: 1048.1
A17: 1997-05-07 | B17: 0.2 | C17: 6.4 | D17: 1036.96 | E17: 1033.1
A18: 1997-10-17 | B18: 0.4 | C18: 8.31 | D18: 1037.1 | E18: 1034.437
A19: 1998-05-27 | B19: 0.1 | C19: 11.7 | D19: 1036.89 | E19: 1036.81 | F19: 1048.1
A20: 1998-11-12 | B20: 0.22 | C20: 7.1 | D20: 1036.974 | E20: 1033.59 | F20: 1047.8
A21: 1998-12-16 | B21: 0 | C21: 6.3 | D21: 1036.82 | E21: 1033.03 | F21: 1047.8
A22: 1999-05-29 | B22: 0.4 | C22: 11.05 | D22: 1037.1 | E22: 1036.355 | F22: 1048
A23: 1999-09-16 | B23: 0.02 | C23: 8.4 | D23: 1036.834 | E23: 1034.5 | F23: 1047.7
A24: 2000-06-14 | B24: 0.01 | C24: 10.41 | D24: 1036.827 | E24: 1035.907 | F24: 1047.6
A25: 2000-09-09 | B25: 0 | C25: 9.5 | D25: 1036.82 | E25: 1035.27
A26: 2001-06-10 | B26: 0.1 | C26: 10.3 | D26: 1036.89 | E26: 1035.83
A27: 2001-09-20 | B27: 0.01 | C27: 8.2 | D27: 1036.827 | E27: 1034.36
A28: 2002-06-18 | B28: 0 | C28: 9.1 | D28: 1036.82 | E28: 1034.99
A29: 2002-09-10 | B29: 0 | C29: 8.2 | D29: 1036.82 | E29: 1034.36
A30: 2002-11-04 | B30: 0 | C30: 7.1 | D30: 1036.82 | E30: 1033.59
A31: 2002-11-10 | B31: 0 | C31: 6.5 | D31: 1036.82 | E31: 1033.17
A32: ='P01-03A(TH-46)'!A9 -> 2003-06-11 | B32: 0.2 | C32: 8.7 | D32: 1036.96 | E32: 1034.71 | G32: *have to continue using old piezometer, tips are too big
A33: ='P01-03A(TH-46)'!A10 -> 2003-09-10 | B33: 0 | C33: 6.3 | D33: 1036.82 | E33: 1033.03 | G33: * Installed new tips, now using new box
A34: 2004-05-10 | B34: 0 | C34: 5.2 | D34: 1036.82 | E34: 1032.26 | G34: 2004 survey data used from this point on
A35: 2004-07-19 | B35: 0 | C35: 6.2 | D35: 1036.82 | E35: 1032.96
A36: 2004-09-09 | B36: 0.1 | C36: 5.7 | D36: 1036.89 | E36: 1032.61
A37: 2005-05-26 | B37: 0 | C37: 8.4 | D37: =1036.82+B37*0.7 -> 1036.82 | E37: =1028.62+C37*0.7 -> 1034.5
A38: 2005-09-14 | B38: 0 | C38: 4.9 | D38: 1036.82 | E38: 1032.05
A39: 2006-03-09 | B39: 0 | C39: 3.3 | D39: 1036.82 | E39: 1030.93
A40: 2006-03-27 | B40: 0.1 | C40: 3.4 | D40: 1036.89 | E40: 1031
A41: 2006-06-14 | B41: 0.1 | C41: 7.1 | D41: 1036.89 | E41: 1033.59
A42: 2006-10-02 | B42: 0.1 | C42: 4.1 | D42: 1036.89 | E42: 1031.49
A43: 2007-05-22 | B43: 0 | C43: 4.6 | D43: =1036.82+B43*0.7 -> 1036.82 | E43: =1028.62+C43*0.7 -> 1031.84 | F43: 1046.781 | G43: Good Flow
A44: 2007-09-26 | B44: 0.1 | C44: 5.7 | D44: 1036.89 | E44: 1032.61
A45: 2008-09-24 | B45: 0.1 | C45: 6.1 | D45: 1036.89 | E45: 1032.89 | F45: 1046.197
A46: 2009-06-29 | B46: 0.1 | C46: 5.7 | D46: 1036.89 | E46: 1032.61
A47: 2009-09-30 | B47: 0.2 | C47: 5.3 | D47: 1036.96 | E47: 1032.33 | F47: 1046.048
A48: 2010-05-15 | B48: 0.2 | C48: 5.2 | D48: 1036.96 | E48: 1032.26 | F48: 1046.269
A49: 2010-06-02 | B49: 1 | C49: 7.9 | D49: 1037.52 | E49: 1034.15 | F49: 1045.94
A50: 2010-08-04 | B50: 0.1 | C50: 3.4 | D50: 1036.89 | E50: 1031 | F50: 1044.285
A51: 2010-09-10 | B51: 10.1 | C51: 3.1 | D51: 1043.89 | E51: 1030.79 | F51: 1043.726
A52: Note: Data until end of 2009 as compiled in BGC 2009 Annual Geotechnical Evaluation and Instrumentation Review; 2010 Data compiled by DES
A53: Note: Check results

Sheet 91-ID4(H-38)
A1: BH91-ID4 | C1: Location: | D1: Intermediate Dam Toe @St.0+567 | E1: Shallow Tip Elevation (m amsl): | G1: 1024.22
C2: Coordinates: | D2: 8V580517 6913926 | E2: Deep Tip Elevation (m amsl): | G2: 1017.08
A3: Surface Protector: | B3: yes | C3: Date Installed: | D3: 1991 | E3: *Surface Elevation (m amsl): | G3: 1031.8
A4: Date | B4: Reading (psi) | D4: Piezometric Elevation (m amsl) | F4: Pond El. (m amsl) | G4: Comments | J4: Date
B5: Shallow | C5: Deep | D5: Shallow | E5: Deep | K5: Surface Elevation | L5: Shallow Tip Elevation | M5: Deep Tip Elevation
B6: (upper) | C6: (lower) | D6: (upper) | E6: (lower) | J6: 1991-07-01 | K6: 1031.8 | L6: 1024.22 | M6: 1017.08
A7: 1991-07-01 | B7: 10.34285714 | C7: 19.05714286 | D7: 1031.46 | E7: 1030.42 | F7: 1042.2 | J7: 2011-12-31 | K7: 1031.8 | L7: 1024.22 | M7: 1017.08
A8: 1991-08-01 | B8: 10.81428571 | C8: 19.2 | D8: 1031.79 | E8: 1030.52 | F8: 1042.2
A9: 1991-09-01 | B9: 11.1 | C9: 19.3 | D9: 1031.99 | E9: 1030.59 | F9: 1042.2
A10: 1992-02-01 | B10: 12.24285714 | C10: 19.58571429 | D10: 1032.79 | E10: 1030.79 | F10: 1047.7
A11: 1992-04-01 | B11: 12.44285714 | C11: 19.64285714 | D11: 1032.93 | E11: 1030.83 | F11: 1047.7
A12: 1992-06-01 | B12: 14.8 | C12: 20.4 | D12: 1034.58 | E12: 1031.36 | F12: 1047.7
A13: 1992-09-01 | B13: 11.85714286 | C13: 21.1 | D13: 1032.52 | E13: 1031.85 | F13: 1047.7
A14: 1994-05-01 | B14: 10 | C14: 18.7 | D14: 1031.22 | E14: 1030.17 | F14: 1047.7
A15: 1994-09-01 | B15: 8.9 | C15: 17.4 | D15: 1030.45 | E15: 1029.26 | F15: 1047.7 | J15: 33420
A16: 1995-09-01 | B16: 11 | C16: 19 | D16: 1031.92 | E16: 1030.38 | F16: 1047.7 | J16: 38353
A17: 1996-09-01 | B17: 10 | D17: 1031.22 | F17: 1048.1
A18: 1996-10-01 | B18: 9.7 | C18: 18.8 | D18: 1031.01 | E18: 1030.24
A19: 1997-05-07 | B19: 6.3 | D19: 1028.63
A20: 1997-10-17 | B20: 11.58 | D20: 1032.326
A21: 1998-05-27 | B21: 11.04 | D21: 1031.948 | F21: 1048.1
A22: 1998-08-07 | C22: 19.4 | E22: 1030.66 | F22: 1048.1
A23: 1998-11-12 | B23: 9.22 | D23: 1030.674 | F23: 1047.8
A24: 1998-12-04 | B24: 8.7 | C24: 18 | D24: 1030.31 | E24: 1029.68 | F24: 1047.8
A25: 1999-05-29 | B25: 11.4 | C25: 20 | D25: 1032.2 | E25: 1031.08 | F25: 1048
A26: 1999-09-16 | B26: 7.7 | C26: 16.2 | D26: 1029.61 | E26: 1028.42 | F26: 1047.7
A27: 2000-06-14 | B27: 10.5 | C27: 19.1 | D27: 1031.57 | E27: 1030.45 | F27: 1047.6
A28: 2000-09-09 | B28: 9.8 | C28: 18.2 | D28: 1031.08 | E28: 1029.82
A29: 2001-06-10 | B29: 9.5 | C29: 18.1 | D29: 1030.87 | E29: 1029.75
A30: 2001-09-20 | B30: 9.7 | C30: 18.2 | D30: 1031.01 | E30: 1029.82
A31: 2002-06-18 | B31: 9.7 | C31: 18.8 | D31: 1031.01 | E31: 1030.24
A32: 2002-09-10 | B32: 9 | C32: 17.8 | D32: 1030.52 | E32: 1029.54
A33: 2002-11-04 | B33: 9 | C33: 17.6 | D33: 1030.52 | E33: 1029.4
A34: 2002-11-10 | B34: 9.2 | C34: 17.7 | D34: 1030.66 | E34: 1029.47
A35: ='P01-03A(TH-46)'!A9 -> 2003-06-11 | B35: 9 | C35: 17.7 | D35: 1030.52 | E35: 1029.47 | G35: *New piezometer readout used
A36: ='P01-03A(TH-46)'!A10 -> 2003-09-10 | B36: 7.6 | C36: 16.4 | D36: 1029.54 | E36: 1028.56
A37: 2004-05-10 | B37: 8.9 | C37: 18.1 | D37: 1030.45 | E37: 1029.75 | G37: No 2004 elevation data
A38: 2004-07-19 | B38: 9.2 | C38: 17.8 | D38: 1030.66 | E38: 1029.54
A39: 2004-09-09 | B39: 8.6 | C39: 17.2 | D39: 1030.24 | E39: 1029.12
A40: 2005-05-26 | B40: 7.5 | C40: 16 | D40: 1029.47 | E40: 1028.28
A41: 2005-09-14 | B41: 6.5 | C41: 15.1 | D41: 1028.77 | E41: 1027.65
A42: 2006-03-09 | B42: 5.9 | C42: 14.5 | D42: =$G$1+B42*0.7 -> 1028.35 | E42: =$G$2+C42*0.7 -> 1027.23
A43: 2006-03-27 | B43: 6.3 | C43: 14.9 | D43: 1028.63 | E43: 1027.51
A44: 2006-06-14 | B44: 6.3 | C44: 14.9 | D44: 1028.63 | E44: 1027.51
A45: 2006-10-02 | B45: 6.3 | C45: 14.9 | D45: 1028.63 | E45: 1027.51
A46: 2007-05-22 | B46: 8.2 | C46: 16.8 | D46: 1029.96 | E46: 1028.84 | F46: 1046.781 | G46: Good Flow
A47: 2007-09-26 | B47: 5.8 | C47: 15 | D47: 1028.28 | E47: 1027.58
A48: 2008-05-20 | B48: 9.2 | C48: 17.5 | D48: 1030.66 | E48: 1029.33
A49: 2008-06-11 | B49: 8.7 | C49: 16.9 | D49: 1030.31 | E49: 1028.91
A50: 2008-09-24 | B50: 7.9 | C50: 16.4 | D50: =$G$1+B50*0.7 -> 1029.75 | E50: =$G$2+C50*0.7 -> 1028.56 | F50: 1046.197
A51: 2009-06-29 | B51: 6.7 | C51: 15.2 | D51: 1028.91 | E51: 1027.72
A52: 2009-09-30 | B52: 8.7 | C52: 16.9 | D52: 1030.31 | E52: 1028.91 | F52: 1046.048
A53: 2010-05-15 | B53: 8.4 | C53: 16.9 | D53: 1030.1 | E53: 1028.91 | F53: 1046.269
A54: 2010-06-02 | B54: 16.7 | C54: 13.8 | D54: 1035.91 | E54: 1026.74 | F54: 1045.94
A55: 2010-09-10 | B55: 6.7 | C55: 14.6 | D55: 1028.91 | E55: 1027.3 | F55: 1043.726
A56: Note: Data until end of 2009 as compiled in BGC 2009 Annual Geotechnical Evaluation and Instrumentation Review; 2010 Data compiled by DES
A57: Note: Check results

Sheet 91-ID6(TH-39)
A1: BH91-ID6 | C1: Location: | D1: Intermediate Dam Toe @St.0+630 | F1: Shallow Tip Elevation (m amsl): | H1: 1024.8
C2: Coordinates: | D2: 8V580475 6913866 | F2: Deep Tip Elevation (m amsl): | H2: 1016.9
A3: Surface Protector: | B3: yes | C3: Date Installed: | D3: 1991 | F3: 2004 Surface Elevation (m amsl): | H3: 1031.36
A4: Date | C4: Reading (psi) | E4: Piezometric Elevation (m amsl) | G4: Pond El. (m amsl) | H4: Comments | L4: Date
C5: Shallow | D5: Deep | E5: Shallow | F5: Deep | M5: Surface Elevation | N5: Shallow Tip Elevation | O5: Deep Tip Elevation
C6: (upper) | D6: (lower) | E6: (upper) | F6: (lower) | L6: 1991-07-01 | M6: 1031.36 | N6: 1024.8 | O6: 1016.9
A7: 1991-07-01 | C7: 7.885714286 | D7: 20.32857143 | E7: 1030.32 | F7: 1031.13 | G7: 1042.2 | L7: 2011-12-31 | M7: 1031.36 | N7: 1024.8 | O7: 1016.9
A8: 1991-08-01 | C8: 8.057142857 | D8: 20.91428571 | E8: 1030.44 | F8: 1031.54 | G8: 1042.2
A9: 1991-09-01 | C9: 8.2 | D9: 20.8 | E9: 1030.54 | F9: 1031.46 | G9: 1042.2
A10: 1992-02-01 | C10: 8.2 | D10: 20.7 | E10: 1030.54 | F10: 1031.39 | G10: 1047.7
A11: 1992-04-01 | C11: 9.057142857 | D11: 23.1 | E11: 1031.14 | F11: 1033.07 | G11: 1047.7
A12: 1992-06-01 | C12: 9.914285714 | D12: 25.8 | E12: 1031.74 | F12: 1034.96 | G12: 1047.7
A13: 1992-09-01 | C13: 8.671428571 | D13: 21.35714286 | E13: 1030.87 | F13: 1031.85 | G13: 1047.7
A14: 1994-05-01 | C14: 7.2 | D14: 20 | E14: 1029.84 | F14: 1030.9 | G14: 1047.7
A15: 1994-09-01 | C15: 6.2 | D15: 18.9 | E15: 1029.14 | F15: 1030.13 | G15: 1047.7
A16: 1995-09-01 | C16: 7.5 | D16: 20 | E16: 1030.05 | F16: 1030.9 | G16: 1047.7
A17: 1996-09-01 | C17: 6.6 | E17: 1029.42 | G17: 1048.1
A18: 1996-10-01 | C18: 5.8 | D18: 21.1 | E18: 1028.86 | F18: 1031.67
A19: 1997-05-07 | C19: 2.9 | E19: 1026.83
A20: 1997-10-17 | C20: 8.41 | E20: 1030.687
A21: 1998-05-27 | C21: 8.56 | E21: 1030.792 | G21: 1048.1
A22: 1998-08-07 | D22: 20.8 | F22: 1031.46 | G22: 1048.1
A23: 1998-11-12 | C23: 6.57 | E23: 1029.399 | G23: 1047.8
A24: 1998-12-04 | C24: 6.8 | D24: 19.5 | E24: 1029.56 | F24: 1030.55 | G24: 1047.8
A25: 1999-05-29 | C25: 8.78 | D25: 21.5 | E25: 1030.946 | F25: 1031.95 | G25: 1048
A26: 1999-09-16 | C26: 5.3 | D26: 17.6 | E26: 1028.51 | F26: 1029.22 | G26: 1047.7
A27: 2000-06-14 | C27: 7.7 | D27: 20.41 | E27: 1030.19 | F27: 1031.187 | G27: 1047.6
A28: 2000-09-09 | C28: 6.8 | D28: 19.7 | E28: 1029.56 | F28: 1030.69
A29: 2001-06-10 | C29: 6.8 | D29: 19.5 | E29: 1029.56 | F29: 1030.55
A30: 2001-09-20 | C30: 7 | D30: 19.7 | E30: 1029.7 | F30: 1030.69
A31: 2002-06-18 | C31: 6.8 | D31: 19.6 | E31: 1029.56 | F31: 1030.62
A32: 2002-09-10 | C32: 6.5 | D32: 19.2 | E32: 1029.35 | F32: 1030.34
A33: 2002-11-04 | C33: 6.3 | D33: 19 | E33: 1029.21 | F33: 1030.2
A34: 2002-11-10 | C34: 6.3 | D34: 19.2 | E34: 1029.21 | F34: 1030.34
A35: ='P01-03A(TH-46)'!A9 -> 2003-06-11 | C35: 6.4 | D35: 19 | E35: 1029.28 | F35: 1030.2 | H35: *New piezometer started use here
A36: ='P01-03A(TH-46)'!A10 -> 2003-09-10 | C36: 5.1 | D36: 17.6 | E36: 1028.37 | F36: 1029.22
A37: 2004-05-10 | C37: 6.3 | D37: 19 | E37: =1024.8+C37*0.7 -> 1029.21 | F37: =1016.9+D37*0.7 -> 1030.2 | H37: 2004 survey data used from this point on
A38: 2004-07-19 | C38: 6.5 | D38: 19.1 | E38: 1029.35 | F38: 1030.27
A39: ='91-ID3(TH-37)'!A36 -> 2004-09-09 | C39: 5.9 | D39: 18.6 | E39: 1028.93 | F39: 1029.92
A40: ='91-ID3(TH-37)'!A37 -> 2005-05-26 | C40: 4.5 | D40: 17.4 | E40: 1027.95 | F40: 1029.08
A41: ='91-ID3(TH-37)'!A38 -> 2005-09-14 | C41: 3.6 | D41: 16.5 | E41: 1027.32 | F41: 1028.45
A42: 2006-03-09 | C42: 3.5 | D42: 16.1 | E42: 1027.25 | F42: 1028.17
A43: 2006-03-27 | C43: 3.4 | D43: 16.4 | E43: 1027.18 | F43: 1028.38 | H43: 3.4/3.5 won't stabilize
A44: 2006-06-14 | C44: 3.7 | D44: 16.3 | E44: 1027.39 | F44: 1028.31
A45: 2006-10-02 | C45: 3.5 | D45: 16.3 | E45: 1027.25 | F45: 1028.31
A46: 2007-05-22 | C46: 5.4 | D46: 18.1 | E46: =1024.8+C46*0.7 -> 1028.58 | F46: =1016.9+D46*0.7 -> 1029.57 | G46: 1046.781 | H46: Good flow
A47: 2007-09-26 | C47: 3.6 | D47: 16.6 | E47: 1027.32 | F47: 1028.52
A48: 2008-05-20 | C48: 6.1 | D48: 18.9 | E48: 1029.07 | F48: 1030.13
A49: 2008-06-11 | C49: 5.7 | D49: 18.4 | E49: 1028.79 | F49: 1029.78
A50: 2008-09-24 | C50: 5.2 | D50: 17.9 | E50: 1028.44 | F50: 1029.43 | G50: 1046.197
A51: 2009-06-29 | C51: 3.9 | D51: 16.6 | E51: 1027.53 | F51: 1028.52
A52: 2009-09-15 | C52: 4.8 | D52: n/r | E52: =1024.8+C52*0.7 -> 1028.16
A53: 2009-09-30 | C53: 5.5 | D53: 18.5 | E53: =1024.8+C53*0.7 -> 1028.65 | F53: 1029.85 | G53: 1046.048
A54: 2010-05-15 | C54: 5.6 | D54: 18.3 | E54: =1024.8+C54*0.7 -> 1028.72 | F54: 1029.71 | G54: 1046.269
A55: 2010-06-02 | C55: 23 | D55: 5.6 | E55: =1024.8+C55*0.7 -> 1040.9 | F55: 1020.82 | G55: 1045.94
A56: 2010-09-10 | C56: 3.3 | D56: 16 | E56: =1024.8+C56*0.7 -> 1027.11 | F56: 1028.1 | G56: 1043.726
A57: Note: Data until end of 2009 as compiled in BGC 2009 Annual Geotechnical Evaluation and Instrumentation Review; 2010 Data compiled by DES
A58: Note: Check results

Sheet 91-ID7(TH-40)
A1: BH91-ID7 | C1: Location: | D1: Intermediate Dam Toe @St.0+759
C2: Coordinates: | D2: 8V580377 6913751 | E2: Tip Elevation (m amsl): | F2: 1025.95
A3: Surface Protector: | B3: yes | C3: Date Installed: | D3: 1991 | E3: 2004 Ground Elevation (amsl): | F3: 1032.42
A4: Date | C4: Reading (psi) | D4: Piezometric Elevation (m amsl) | E4: Pond El. (m amsl) | F4: Comments | I4: Date
A5: 1991-07-01 | C5: 8.942857143 | D5: 1032.21 | E5: 1042.2 | J5: Surface Elevation | K5: Tip Elevation
A6: 1991-08-01 | C6: 9.057142857 | D6: 1032.29 | E6: 1042.2 | I6: 1991-07-01 | J6: 1032.42 | K6: 1025.95
A7: 1991-09-01 | C7: 8.9 | D7: 1032.18 | E7: 1042.2 | I7: 2012-12-31 | J7: 1032.42 | K7: 1025.95
A8: 1992-02-01 | C8: 13.21428571 | D8: 1035.2 | E8: 1047.7
A9: 1992-04-01 | C9: 10.01428571 | D9: 1032.96 | E9: 1047.7
A10: 1992-06-01 | C10: 10.61428571 | D10: 1033.38 | E10: 1047.7
A11: 1992-09-01 | C11: 9.214285714 | D11: 1032.4 | E11: 1047.7
A12: 1994-05-01 | C12: 8.6 | D12: 1031.97 | E12: 1047.7
A13: 1994-09-01 | C13: 7.4 | D13: 1031.13 | E13: 1047.7
A14: 1995-09-01 | C14: 9 | D14: 1032.25 | E14: 1047.7
A15: 1996-09-01 | C15: 8.1 | D15: 1031.62 | E15: 1048.1
A16: 1997-05-07 | C16: 5.1 | D16: 1029.52
A17: 1997-10-17 | C17: 9.36 | D17: 1032.502
A18: 1998-05-27 | C18: 9.49 | D18: 1032.593 | E18: 1048.1
A19: 1998-11-12 | C19: 7.56 | D19: 1031.242 | E19: 1047.8
A20: 1998-12-16 | C20: 7.6 | D20: 1031.27 | E20: 1047.8
A21: 1999-05-29 | C21: 9.6 | D21: 1032.67 | E21: 1048
A22: 1999-09-16 | C22: 6.6 | D22: 1030.57 | E22: 1047.7
A23: 2000-06-14 | C23: 8.9 | D23: 1032.18 | E23: 1047.6
A24: 2000-09-09 | C24: 7.5 | D24: 1031.2
A25: 2001-06-10 | C25: 8.2 | D25: 1031.69
A26: 2001-09-20 | C26: 8.1 | D26: 1031.62
A27: 2002-06-18 | C27: 8.3 | D27: 1031.76
A28: 2002-09-10 | C28: 7.7 | D28: 1031.34
A29: 2002-11-04 | C29: 7.5 | D29: 1031.2
A30: 2002-11-10 | C30: 7.4 | D30: 1031.13
A31: ='P01-03A(TH-46)'!A9 -> 2003-06-11 | C31: 7.7 | D31: 1031.34 | F31: *New piezometer started use here
A32: ='P01-03A(TH-46)'!A10 -> 2003-09-10 | C32: 6.2 | D32: 1030.29
A33: 2004-05-10 | C33: 7.2 | D33: =$F$2+C33*0.7 -> 1030.99 | F33: 2004 survey data used from here on
A34: 2004-07-19 | C34: 7.4 | D34: 1031.13
A35: ='91-ID3(TH-37)'!A36 -> 2004-09-09 | C35: 6.9 | D35: 1030.78
A36: ='91-ID3(TH-37)'!A37 -> 2005-05-26 | C36: 6.1 | D36: 1030.22
A37: ='91-ID3(TH-37)'!A38 -> 2005-09-14 | C37: 5.1 | D37: 1029.52
A38: 2006-03-09 | C38: 4.6 | D38: 1029.17
A39: 2006-03-27 | C39: 4.8 | D39: 1029.31
A40: 2006-06-14 | C40: 5.4 | D40: 1029.73
A41: 2006-10-02 | C41: 4.9 | D41: 1029.38
A42: 2007-05-22 | C42: 6.3 | D42: 1030.36 | E42: 1046.781 | F42: Good Flow
A43: 2007-09-26 | C43: 5.5 | D43: 1029.8
A44: 2008-05-20 | C44: 7.3 | D44: 1031.06
A45: 2008-06-11 | C45: 6.9 | D45: 1030.78
A46: 2008-09-24 | C46: 6.4 | D46: =$F$2+C46*0.7 -> 1030.43 | E46: 1046.197
A47: 2009-06-29 | C47: 5.3 | D47: 1029.66
A48: 2009-09-15 | C48: 5.8 | D48: 1030.01
A49: 2009-09-30 | C49: 6.5 | D49: 1030.5 | E49: 1046.048
A50: 2010-05-15 | C50: 6.5 | D50: 1030.5 | E50: 1046.269
A51: 2010-06-02 | C51: 5.8 | D51: 1030.01 | E51: 1045.94
A52: 2010-09-10 | C52: 4.3 | D52: 1028.96 | E52: 1043.726
A53: Note: Data until end of 2009 as compiled in BGC 2009 Annual Geotechnical Evaluation and Instrumentation Review; 2010 Data compiled by DES

Sheet 94-IDC-1(TH-41)
A1: BH94-IDC-1 | C1: Location: | D1: Intermediate Dam Crest | E1: 2004 Stick Up (m): | F1: 0.27
C2: Coordinates: | D2: 8V580605 6913969 | E2: 2004 Surface Elevation (m amsl): | F2: 1049.21
A3: Surface Protector: | B3: Yes | C3: Date Installed: | D3: 1994 | E3: Tip Elevation: | F3: N/A
A5: Date | C5: Water level from top of pipe (m) | D5: Piezometric Elevation (m amsl) | E5: Pond El. (m amsl) | F5: Comments
A6: 1994-06-02 | E6: 1047.7 | F6: dry | L6: Ground Surface | M6: Bottom of Slotted Section | N6: Top of Slotted Section
A7: 1994-09-16 | E7: 1047.7 | F7: dry | K7: 1990-09-01 | L7: 1049.21 | M7: 1035.46 | N7: =C$2-7.78 -> 
A8: 1995-09-22 | E8: 1047.7 | F8: dry | K8: 2010-12-31 | L8: 1049.21 | M8: 1035.46 | N8: =N7 -> 
A9: 1996-09-25 | E9: 1048.1 | F9: dry
A10: 1998-05-28 | E10: 1048.1 | F10: dry
A11: 1998-11-13 | C11: 14.1 | D11: 1035.48 | E11: 1047.8 | F11: dry
A12: 1999-06-08 | C12: 14.1 | D12: 1035.48 | E12: 1047.8 | F12: dry
A13: 1999-09-16 | C13: 14.18 | D13: 1035.4 | E13: 1047.7 | F13: dry
A14: 2000-06-14 | C14: 14.11 | D14: 1035.47 | E14: 1047.6 | F14: dry
A15: 2000-09-09 | C15: 14.11 | D15: 1035.47 | E15: 1047.6 | F15: H2O
A16: 2001-06-10 | C16: 14.11 | D16: 1035.47 | E16: 1047.6
A17: 2001-08-01 | C17: 14.11 | D17: 1035.47 | E17: 1047.6 | F17: dry
A18: 2002-06-18 | C18: 14.11 | D18: 1035.47 | F18: dry
A19: 2002-08-05 | C19: 14.185 | D19: 1035.395 | F19: dry
A20: 2002-09-02 | C20: 14.11 | D20: 1035.47 | F20: dry
A21: 2002-11-02 | C21: 14.11 | D21: 1035.47 | F21: dry
A22: 2002-11-10 | C22: 14.11 | D22: 1035.47 | F22: dry
A23: ='P01-03A(TH-46)'!A9 -> 2003-06-11 | C23: 14.12 | D23: 1035.46 | F23: dry
A24: ='P01-03A(TH-46)'!A10 -> 2003-09-10 | C24: 14.11 | D24: 1035.47 | F24: dry
A25: 2003-05-10 | C25: 14.11 | D25: 1035.47 | F25: dry
A26: 2004-07-19 | C26: 14.11 | D26: =$F$2+$F$1-C26 -> 1035.37 | F26: dry
A27: ='91-ID3(TH-37)'!A36 -> 2004-09-09 | C27: 14.11 | D27: 1035.37 | F27: dry
A28: ='91-ID3(TH-37)'!A37 -> 2005-05-26 | C28: 14.12 | D28: 1035.36 | F28: bottom
A29: ='91-ID3(TH-37)'!A38 -> 2005-09-14 | C29: 14.12 | D29: 1035.36 | F29: bottom
A30: 2006-03-09 | C30: 14.17 | D30: 1035.31
A31: 2006-03-27 | C31: 14.13 | D31: 1035.35 | F31: no beep, ice crystals
A32: 2006-06-14 | C32: 14.125 | D32: 1035.355 | F32: bottom
A33: 2006-10-02 | C33: 14.12 | D33: 1035.36
A34: 2007-05-22 | C34: 14.135 | D34: 1035.345 | E34: 1046.781 | F34: bottom and beep
A35: 2007-09-26 | C35: 14.125 | D35: 1035.355 | F35: no beep
A36: 2008-05-20 | C36: 14.15 | D36: 1035.33 | F36: no beep
A37: 2008-06-11 | C37: 14.14 | D37: 1035.34 | F37: no beep
A38: 2008-09-24 | C38: 14.14 | D38: =$F$2+$F$1-C38 -> 1035.34 | E38: 1046.197 | F38: no beep
A39: 2009-06-29 | C39: 14.15 | D39: 1035.33 | F39: no beep
A40: 2009-09-30 | C40: 14.155 | D40: 1035.325 | E40: 1046.048 | F40: no beep
A41: 2010-05-15 | C41: 14.172 | D41: 1035.308 | E41: 1046.269 | F41: no beep
A42: 2010-06-02 | C42: 14.15 | D42: 1035.33 | E42: 1045.94 | F42: no beep
A43: 2010-09-10 | C43: 14.15 | D43: 1035.33 | E43: 1043.726 | F43: no beep
A44: Note: Data until end of 2009 as compiled in BGC 2009 Annual Geotechnical Evaluation and Instrumentation Review; 2010 Data compiled by DES

Sheet 96-1(TH-42)
A1: BH96-1 | C1: Location: | D1: Intermediate Dam Crest
C2: Coordinates: | D2: 8V580563 6913908 | E2: 2004 Stick Up: | F2: 0.68
A3: Surface Protector: | B3: yes | C3: Date Installed: | D3: 1996 | E3: 2004 Surface Elevation (m amsl): | F3: 1049.15
C4: Screened Interval (m bgs): | D4: 18.77 - 21.80 | E4: Tip Elevation (m amsl): | F4: 1027.35 | L4: Ground Surface | M4: Bottom of Slotted Section | N4: Top of Slotted Section
A5: Date | C5: Water level from top of pipe (m) | E5: Piezometric Elevation (m amsl) | F5: Comments | K5: 1996-01-01 | L5: 1049.15 | M5: 1027.35 | N5: 1030.38
A6: 1996-09-08 | C6: 20.06 | E6: 1029.99 | K6: 2012-12-31 | L6: 1049.15 | M6: 1027.35 | N6: 1030.38
A7: 1996-09-26
A8: 1996-09-27
A9: 1997-05-13
A10: 1997-06-06
A11: 1997-07-11
A12: 1997-10-07 | C12: 18.77 | E12: 1031.28
A13: 1998-06-01 | C13: 18.73 | E13: 1031.32
A14: 1998-10-31 | C14: 20.08 | E14: 1029.97
A15: 1998-11-13 | C15: 19.97 | E15: 1030.08
A16: 1999-06-08 | C16: 18.4 | E16: 1031.65
A17: 1999-06-19
A18: 1999-07-03
A19: 1999-10-29 | C19: 20.55 | E19: 1029.5
A20: 1999-10-31
A21: 2000-05-31
A22: 2000-06-27
A23: 2000-07-25
A24: 2000-09-21 | C24: 20.13 | E24: 1029.92
A25: 2000-10-10
A26: 2001-06-06
A27: 2001-07-15
A28: 2001-09-05
A29: 2002-06-18
A30: 2002-08-05 | C30: 20.48 | E30: 1029.57
A31: 2002-09-10 | C31: 20.02 | E31: 1030.03
A32: 2002-11-04 | C32: 20.14 | E32: 1029.91
A33: 2002-11-10 | C33: 20.06 | E33: 1029.99
A34: ='P01-03A(TH-46)'!A9 -> 2003-06-11 | C34: 20.025 | E34: 1030.025
A35: ='P01-03A(TH-46)'!A10 -> 2003-09-10 | C35: 20.96 | E35: 1029.09
A36: 2004-05-12 | C36: 19.925 | E36: =F$3+F$2-C36 -> 1029.905 | F36: 2004 survey data used from here on
A37: 2004-07-08 | C37: 19.695 | E37: 1030.135
A38: 2004-07-19 | C38: 19.945 | E38: 1029.885
A39: ='91-ID3(TH-37)'!A36 -> 2004-09-09 | C39: 20.325 | E39: 1029.505 | F39: clear
A40: ='91-ID3(TH-37)'!A37 -> 2005-05-26 | C40: 21.17 | E40: 1028.66 | F40: ice
A41: ='91-ID3(TH-37)'!A38 -> 2005-09-14 | C41: 21.82 | E41: 1028.01
A42: 2006-03-09
A43: 2006-03-27 | F43: no read, frozen
A44: 2006-06-14 | C44: 2.27 | F44: likely a mistake
A45: 2006-10-02 | C45: 21.98 | E45: 1027.85
A46: 2007-05-22 | F46: no read, frozen
A47: 2007-09-26 | C47: 21.655 | E47: 1028.175
A48: 2008-05-20 | C48: 1.22 | F48: no beep, frozen
A49: 2008-06-11 | C49: 1.2 | F49: no beep, frozen
A50: 2008-09-24 | C50: 20.97 | E50: 1028.86
A51: 2009-06-29 | C51: 3.08 | F51: frozen
A52: 2009-09-30 | C52: 20.591 | E52: 1029.239
A53: 2010-05-15 | C53: 20.589 | E53: 1029.241 | F53: slush present
A54: 2010-06-02 | C54: 21.018 | E54: 1028.812
A55: 2010-09-10 | C55: 22.2 | E55: 1027.63
A56: Note: Data until end of 2009 as compiled in BGC 2009 Annual Geotechnical Evaluation and Instrumentation Review; 2010 Data compiled by DES

Sheet 96-2(TH-43)
A1: BH96-2 | C1: Location: | D1: Intermediate Dam Crest
C2: Coordinates: | D2: 8V580696 6914096 | E2: Tip Elevation (m amsl): | F2: 1028.87
A3: Surface Protector: | B3: yes | C3: Date Installed: | D3: 1996 | E3: 2004 Surface Elevation: (m amsl) | F3: 1049.22
C4: Screened Interval (m bgs): | D4: 17.13 - 20.12 | E4: 2004 Stick Up (m): | F4: 0.72
A5: Date | C5: Water level from top of pipe (m) | E5: Piezometric Elevation (m amsl) | F5: Comments | J5: Ground Surface | K5: Bottom of Slotted Section | L5: Top of Slotted Section
A6: 1996-09-08 | C6: 19.74 | E6: 1030.31 | I6: 1996-01-01 | J6: 1049.22 | K6: 1028.87 | L6: 1031.86
A7: 1996-09-26 | I7: 2012-12-31 | J7: 1049.22 | K7: 1028.87 | L7: 1031.86
A8: 1996-09-27 | C8: 19.94 | E8: 1030.11
A9: 1997-05-13
A10: 1997-06-06
A11: 1997-07-11
A12: 1997-10-07 | C12: 18.3 | E12: 1031.75
A13: 1998-06-01 | C13: 18.44 | E13: 1031.61
A14: 1998-10-31 | C14: 19.8 | E14: 1030.25
A15: 1998-11-13 | C15: 19.69 | E15: 1030.36
A16: 1999-06-08 | C16: 18.11 | E16: 1031.94
A17: 1999-06-19
A18: 1999-07-03
A19: 1999-10-29 | C19: 20.25 | E19: 1029.8
A20: 1999-10-31
A21: 2000-05-31
A22: 2000-06-27
A23: 2000-07-25
A24: 2000-09-21 | C24: 19.78 | E24: 1030.27
A25: 2000-10-10
A26: 2001-06-06
A27: 2001-07-15
A28: 2001-09-05
A29: 2002-06-18 | C29: 19.375 | E29: 1030.675
A30: 2002-08-05 | C30: 20.15 | E30: 1029.9
A31: 2002-09-10 | C31: 19.68 | E31: 1030.37
A32: 2002-11-04 | C32: 19.815 | E32: 1030.235
A33: 2002-11-10 | C33: 19.73 | E33: 1030.32
A34: ='P01-03A(TH-46)'!A9 -> 2003-06-11 | C34: 19.71 | E34: 1030.34
A35: ='P01-03A(TH-46)'!A10 -> 2003-09-10 | C35: 20.65 | E35: 1029.4
A36: 2004-05-10 | C36: 21.07 | E36: =F$3+F$4-C36 -> 1028.87 | F36: Dry reading, 2004 survey data used from here on
A37: 2004-07-19 | C37: 19.615 | E37: 1030.325
A38: ='91-ID3(TH-37)'!A36 -> 2004-09-09 | C38: 20.02 | E38: 1029.92
A39: ='91-ID3(TH-37)'!A37 -> 2005-05-26 | C39: 19.95 | E39: 1029.99
A40: ='91-ID3(TH-37)'!A38 -> 2005-09-14 | C40: 21.04 | E40: 1028.9 | F40: bottom iron mud on probe
A41: 2006-03-09 | C41: 21.15 | E41: 1028.79
A42: 2006-03-27 | C42: 21.03 | E42: 1028.91 | F42: no beep, mud on probe
A43: 2006-06-14 | C43: 13.05
A44: 2006-10-02 | C44: 21.04 | E44: 1028.9
A45: 2007-05-22 | C45: 20.34 | E45: 1029.6 | F45: no beep, dry
A46: 2007-09-26 | C46: 21.4 | E46: =F$3+F$4-C46 -> 1028.54
A47: 2008-05-20 | C47: 19.885 | E47: 1030.055
A48: 2008-06-11 | C48: 20.19 | E48: 1029.75
A49: 2008-09-24 | C49: 20.58 | E49: 1029.36
A50: 2009-06-29 | C50: 21.5 | E50: 1028.44 | F50: no beep
A51: 2009-09-30 | C51: 20.238 | E51: 1029.702
A52: 2010-05-15 | C52: 20.269 | E52: =F$3+F$4-C52 -> 1029.671
A53: 2010-06-02 | C53: 20.666 | E53: =F$3+F$4-C53 -> 1029.274
A54: 2010-09-10 | C54: 21.035 | E54: =F$3+F$4-C54 -> 1028.905
A55: Note: Data until end of 2009 as compiled in BGC 2009 Annual Geotechnical Evaluation and Instrumentation Review; 2010 Data compiled by DES

Sheet 96-3(A&B)(TH-44)
A1: BH96-3 | C1: Location: | D1: Intermediate Dam Toe, near the North Abutment | E1: 2004 Stick Up - A (m): | F1: 0.65
C2: Coordinates: | D2: 8V580529 6913934 | E2: 2004 Stick Up - B (m): | F2: 0.59
A3: Surface Protector: | B3: yes | C3: Date Installed: | D3: 1996 | E3: 2004 Surface Elevation (m amsl): | F3: 1031.48
C4: Tip Elevation - A (m amsl): | D4: 1022.43 | E4: Screened Interval - A (m bgs): | F4: 7.44 - 8.97
C5: Tip Elevation - B (m amsl): | D5: 1012.23 | E5: Screened Interval - B (m bgs): | F5: 17.7 - 19.17
A6: Date | B6: Water level from top of pipe (m) | D6: Piezometric Elevation (m amsl) | F6: Comments | I6: Ground Surface | J6: Tip A | K6: Tip B
B7: A | C7: B | D7: 96-3A (Shallow) | E7: 96-3B (Deep) | H7: 1996-01-01 | I7: 1031.48 | J7: 1022.51 | K7: 1012.31
A8: 1996-09-08 | B8: 2.37 | C8: 2.25 | D8: 1029.71 | E8: 1029.78 | H8: 2012-12-31 | I8: 1031.48 | J8: 1022.51 | K8: 1012.31
A9: 1996-09-26 | B9: 2.53 | C9: 2.4 | D9: 1029.55 | E9: 1029.63
A10: 1996-09-27
A11: 1997-05-13 | B11: 4.5 | C11: 4.32 | D11: 1027.58 | E11: 1027.71
A12: 1997-06-06
A13: 1997-07-11
A14: 1997-10-07 | B14: 1.06 | C14: 0.95 | D14: 1031.02 | E14: 1031.08
A15: 1998-06-01 | B15: 1.07 | C15: 0.99 | D15: 1031.01 | E15: 1031.04
A16: 1998-10-31 | B16: 2.44 | C16: 2.34 | D16: 1029.64 | E16: 1029.69
A17: 1998-11-13
A18: 1999-06-08
A19: 1999-06-19 | B19: 0.7 | C19: 0.58 | D19: 1031.38 | E19: 1031.45
A20: 1999-07-03
A21: 1999-10-29 | B21: 2.94 | C21: 2.82 | D21: 1029.14 | E21: 1029.21
A22: 1999-10-31
A23: 2000-05-31
A24: 2000-06-27 | B24: 2.41 | C24: 2.26 | D24: 1029.67 | E24: 1029.77
A25: 2000-07-25
A26: 2000-09-21
A27: 2000-10-10 | B27: 2.2 | C27: 2.05 | D27: 1029.88 | E27: 1029.98
A28: 2001-06-06 | B28: 2.38 | C28: 2.24 | D28: 1029.7 | E28: 1029.79
A29: 2001-07-15 | B29: 2 | C29: 1.86 | D29: 1030.08 | E29: 1030.17
A30: 2001-09-05 | B30: 1.98 | C30: 1.86 | D30: 1030.1 | E30: 1030.17
A31: 2002-06-18 | B31: 1.81 | D31: 1030.27
A32: 2002-08-05
A33: 2002-09-10 | B33: 2.565 | C33: 2.42 | D33: 1029.515 | E33: 1029.61
A34: 2002-11-04
A35: 2002-11-10
A36: ='96-2(TH-43)'!A34 -> 2003-06-11 | B36: 2.47 | C36: 2.34 | D36: 1029.61 | E36: 1029.69
A37: ='96-2(TH-43)'!A35 -> 2003-09-10 | B37: 3.43 | C37: 3.28 | D37: 1028.65 | E37: 1028.75
A38: 2004-07-08 | B38: 2.15 | C38: 2.01 | D38: =F$3+F$1-B38 -> 1029.98 | E38: =F$3+F$2-C38 -> 1030.06 | F38: 2004 survey data used from here on
A39: 2004-07-19 | B39: 2.4 | C39: 2.225 | D39: 1029.73 | E39: 1029.845
A40: ='91-ID3(TH-37)'!A36 -> 2004-09-09 | B40: 2.77 | C40: 2.645 | D40: 1029.36 | E40: 1029.425 | F40: clear, sulphur smell
A41: ='91-ID3(TH-37)'!A37 -> 2005-05-26 | B41: 3.66 | C41: 3.49 | D41: 1028.47 | E41: 1028.58
A42: ='91-ID3(TH-37)'!A38 -> 2005-09-14 | B42: 4.365 | C42: 4.18 | D42: 1027.765 | E42: 1027.89
A43: 2006-03-09 | B43: 4.76 | C43: 4.59 | D43: 1027.37 | E43: 1027.48
A44: 2006-03-27 | B44: 4.43 | C44: 4.26 | D44: 1027.7 | E44: 1027.81
A45: 2006-06-14 | B45: 4.45 | C45: 4.26 | D45: 1027.68 | E45: 1027.81
A46: 2006-10-02 | B46: 4.42 | C46: 4.3 | D46: 1027.71 | E46: 1027.77
A47: 2007-05-22 | B47: 2.29 | C47: 2.88 | D47: =F$3+F$1-B47 -> 1029.84 | E47: =F$3+F$2-C47 -> 1029.19 | F47: a- frozen no beep
A48: 2007-09-26 | B48: 4.06 | C48: 3.94 | D48: 1028.07 | E48: 1028.13
A49: 2008-05-20 | B49: 2.56 | C49: 2.48 | D49: 1029.57 | E49: 1029.59
A50: 2008-06-11 | B50: 2.91 | C50: 2.81 | D50: 1029.22 | E50: 1029.26
A51: 2008-09-24 | B51: 3.36 | C51: 3.25 | D51: 1028.77 | E51: 1028.82
A52: 2009-06-29 | B52: 4.17 | C52: 4.04 | D52: 1027.96 | E52: 1028.03
A53: 2009-09-30 | B53: 2.971 | C53: 2.87 | D53: =F$3+F$1-B53 -> 1029.159 | E53: =F$3+F$2-C53 -> 1029.2
A54: 2010-05-15 | B54: 2.954 | C54: 2.853 | D54: =F$3+F$1-B54 -> 1029.176 | E54: =F$3+F$2-C54 -> 1029.217
A55: 2010-06-02 | B55: 3.392 | C55: 3.282 | D55: =F$3+F$1-B55 -> 1028.738 | E55: =F$3+F$2-C55 -> 1028.788
A56: 2010-09-10 | B56: 5.51 | C56: 3.765 | D56: =F$3+F$1-B56 -> 1026.62 | E56: =F$3+F$2-C56 -> 1028.305
A57: Note: Data until end of 2009 as compiled in BGC 2009 Annual Geotechnical Evaluation and Instrumentation Review; 2010 Data compiled by DES

Sheet 96-4(ABC&D)(TH-45)
A1: BH96-4 | C1: Location: | E1: Intermediate Dam Toe, near South Abutment | G1: 2004 Stick Up - A (m): | I1: 0.95 | L1: Standpipe | M1: Tip Elevation
C2: Coordinates: | E2: 8V580669 6914113 | G2: 2004 Stick Up - B (m): | I2: 0.87 | L2: a | M2: =$I$5-6.48 -> 1025.68
A3: Surface Protector: | B3: N/A | C3: Date Installed: | E3: 1996 | G3: 2004 Stick Up - C (m): | I3: 0.91 | L3: b | M3: =I5-11.3 -> 1020.86
A4: Screened Interval - A (m bgs): | B4: 5.7-6.48 | C4: Screened Interval - C (m bgs): | E4: 14.97-16.47 | G4: 2004 Stick Up - D (m): | I4: 0.88 | L4: c | M4: =I5-16.47 -> 1015.69
A5: Screened Interval - B (m bgs): | B5: 9.8-11.3 | C5: Screened Interval - D (m bgs): | E5: 26.84-28.34 | G5: 2004 Surface Elevation (m amsl): | I5: 1032.16 | L5: d | M5: =I5-28.34 -> 1003.82
A6: Date | B6: Water level from top of pipe (m) | F6: Piezometric Elevation (m amsl) | J6: Comments | N6: Ground Surface | O6: tip A | P6: tip B | Q6: tip C | R6: tip D
B7: A | C7: B | D7: C | E7: D | F7: A | G7: B | H7: C | I7: D | M7: 1996-01-01 | N7: 1032.16 | O7: 1025.68 | P7: 1020.86 | Q7: 1015.69 | R7: 1003.82
A8: 1996-09-08 | B8: 3.11 | C8: 3.04 | D8: 2.98 | E8: 2.88 | F8: 1029.99 | G8: 1030.01 | H8: 1030.02 | I8: 1030.12 | M8: 2012-12-31 | N8: 1032.16 | O8: 1025.68 | P8: 1020.86 | Q8: 1015.69 | R8: 1003.82
A9: 1996-09-26 | B9: 3.27 | C9: 3.25 | D9: 3.12 | E9: 3.05 | F9: 1029.83 | G9: 1029.8 | H9: 1029.88 | I9: 1029.95
A10: 1996-09-27
A11: 1997-05-13 | B11: 5.21 | D11: 4.85 | F11: 1027.89 | H11: 1028.15
A12: 1997-06-06
A13: 1997-07-11 | C13: 3.51 | G13: 1029.54
A14: 1997-10-07 | B14: 1.45 | C14: 1.87 | D14: 1.82 | F14: 1031.65 | G14: 1031.18 | H14: 1031.18
A15: 1998-06-01 | B15: 1.84 | C15: 1.84 | D15: 1.83 | E15: 1.62 | F15: 1031.26 | G15: 1031.21 | H15: 1031.17 | I15: 1031.38
A16: 1998-10-31 | B16: 3.18 | C16: 3.15 | D16: 3.09 | E16: 3.01 | F16: 1029.92 | G16: 1029.9 | H16: 1029.91 | I16: 1029.99
A17: 1998-11-13
A18: 1999-06-08
A19: 1999-06-19 | B19: 1.43 | C19: 1.38 | D19: 1.36 | E19: 1.25 | F19: 1031.67 | G19: 1031.67 | H19: 1031.64 | I19: 1031.75
A20: 1999-07-03
A21: 1999-10-29 | B21: 3.68 | C21: 3.62 | D21: 3.6 | E21: 3.48 | F21: 1029.42 | G21: 1029.43 | H21: 1029.4 | I21: 1029.52
A22: 1999-10-31
A23: 2000-05-31
A24: 2000-06-27 | B24: 3.14 | C24: 3.08 | D24: 3.07 | E24: 2.93 | F24: 1029.96 | G24: 1029.97 | H24: 1029.93 | I24: 1030.07
A25: 2000-07-25 | D25: 2.84 | H25: 1030.16
A26: 2000-09-21
A27: 2000-10-10 | B27: 2.92 | C27: 2.85 | D27: 2.83 | E27: 2.71 | F27: 1030.18 | G27: 1030.2 | H27: 1030.17 | I27: 1030.29
A28: 2001-06-06 | B28: 3.13 | C28: 3.04 | D28: 3.06 | E28: 2.94 | F28: 1029.97 | G28: 1030.01 | H28: 1029.94 | I28: 1030.06
A29: 2001-07-15
A30: 2001-09-05 | B30: 2.77 | C30: 2.68 | D30: 2.71 | E30: 2.57 | F30: 1030.33 | G30: 1030.37 | H30: 1030.29 | I30: 1030.43
A31: 2002-06-18 | B31: 1.06 | C31: 0.77 | F31: 1032.04 | G31: 1032.28
A32: 2002-08-05
A33: 2002-09-10 | B33: 3.305 | C33: 3.235 | D33: 3.25 | E33: 3.105 | F33: 1029.795 | G33: 1029.815 | H33: 1029.75 | I33: 1029.895
A34: 2002-11-04
A35: 2002-11-10
A36: ='96-3(A&B)(TH-44)'!A36 -> 2003-06-11 | B36: 3.24 | C36: 3.15 | D36: 3.21 | E36: 3.06 | F36: 1029.86 | G36: 1029.9 | H36: 1029.79 | I36: 1029.94
A37: ='96-3(A&B)(TH-44)'!A37 -> 2003-09-10 | B37: 4.19 | C37: 3.82 | D37: 4.15 | E37: 3.99 | F37: 1028.91 | G37: 1029.23 | H37: 1028.85 | I37: 1029.01
A38: 2004-05-10 | B38: 3.18 | C38: 3.095 | D38: 3.14 | E38: 3.01 | F38: =$I$5+I$1-B38 -> 1029.93 | G38: =$I$5+I$2-C38 -> 1029.935 | H38: =$I$5+I$3-D38 -> 1029.93 | I38: =$I$5+I$4-E38 -> 1030.03 | J38: 2004 survey info used from here on
A39: 2004-07-08 | B39: 3.164 | C39: 3.09 | D39: 3.115 | E39: 2.985 | F39: 1029.946 | G39: 1029.94 | H39: =$I$5+I$3-D39 -> 1029.955 | I39: 1030.055
A40: 2004-07-19 | B40: 3.56 | C40: 3.09 | D40: 3.115 | E40: 2.985 | F40: 1029.55 | G40: 1029.94 | H40: =$I$5+I$3-D40 -> 1029.955 | I40: 1030.055
A41: 2004-09-09 | B41: 3.41 | C41: 3.41 | D41: 3.5 | E41: 3.375 | F41: 1029.7 | G41: 1029.62 | H41: =$I$5+I$3-D41 -> 1029.57 | I41: 1029.665 | J41: a, b and c - dirty; d - clear; a and d - sulphur smell
A42: 2005-05-26 | B42: 4.415 | C42: 3.74 | E42: 4.215 | F42: 1028.695 | G42: 1029.29 | I42: 1028.825 | J42: coarse sand frozen
A43: 2005-09-14 | B43: 5.1 | C43: 3.75 | D43: 5.25 | E43: 4.89 | F43: 1028.01 | G43: 1029.28 | H43: =$I$5+I$3-D43 -> 1027.82 | I43: 1028.15 | J43: b- bottom blocked
A44: 2006-03-09 | B44: 5.5 | C44: blocked | D44: 5.33 | E44: 5.31 | F44: 1027.61 | H44: =$I$5+I$3-D44 -> 1027.74 | I44: 1027.73 | J44: b- bottom blocked
A45: 2006-03-27 | B45: 5.19 | C45: blocked | D45: 5.115 | E45: 4.99 | F45: 1027.92 | H45: =$I$5+I$3-D45 -> 1027.955 | I45: 1028.05 | J45: b- bottom blocked, ice crystals on probe
A46: 2006-06-14 | B46: 2.66 | C46: 3.75 | D46: 0.4 | E46: 4.98 | G46: 1028.41 | I46: 1028.06 | J46: b-bottom. C-bottom fine sand
A47: 2006-10-02 | B47: 5.28 | C47: 3.75 | D47: 5.2 | E47: 5.07 | F47: 1027.83 | G47: 1028.41 | H47: =$I$5+I$3-D47 -> 1027.87 | I47: 1027.97
A48: 2007-05-22 | B48: 3.15 | C48: 3.75 | D48: 1.52 | E48: 3.11 | F48: =$I$5+I$1-B48 -> 1029.96 | G48: 1028.41 | H48: 1031.55 | I48: =$I$5+I$4-E48 -> 1029.93 | J48: a, b and d- frozen no beep
A49: 2007-09-26 | B49: 4.915 | C49: 3.74 | D49: 4.84 | E49: 4.705 | F49: 1028.195 | G49: 1028.42 | H49: 1028.23 | I49: 1028.335 | J49: b: dry
A50: 2008-05-20 | B50: 3.46 | C50: 3.37 | D50: 3.39 | E50: 2.6 | F50: 1029.65 | G50: 1028.79 | H50: 1029.68 | I50: 1030.44
A51: 2008-06-11 | B51: 3.79 | C51: 3.7 | D51: 3.72 | E51: 3.6 | F51: 1029.32 | G51: 1028.46 | H51: 1029.35 | I51: 1029.44
A52: 2008-09-24 | B52: 4.23 | C52: 3.75 | D52: 4.15 | E52: 4.01 | F52: =$I$5+I$1-B52 -> 1028.88 | G52: 1028.41 | H52: 1028.92 | I52: 1029.03 | J52: b: dry
A53: 2009-06-29 | B53: 5.03 | C53: 3.77 | D53: 4.93 | E53: 4.8 | F53: 1028.08 | G53: 1028.39 | H53: 1028.14 | I53: 1028.24 | J53: b: no beep
A54: 2009-09-30 | B54: 3.851 | C54: 3.77 | D54: 3.773 | E54: 2.652 | F54: 1029.259 | G54: 1028.39 | H54: =$I$5+I$3-D54 -> 1029.297 | I54: =$I$5+I$4-E54 -> 1030.388
A55: 2010-05-15 | E55: 3.656 | I55: =$I$5+I$4-E55 -> 1029.384
A56: 2010-06-02 | E56: 4.076 | I56: =$I$5+I$4-E56 -> 1028.964
A57: 2010-09-10 | E57: 5.285 | I57: =$I$5+I$4-E57 -> 1027.755
A58: Note: Data until end of 2009 as compiled in BGC 2009 Annual Geotechnical Evaluation and Instrumentation Review; 2010 Data compiled by DES

Sheet P01-03A(TH-46)
A1: P01-03 | C1: Location: | D1: Intermediate Dam Toe | E1: 2004 Stick-Up (m): | F1: 0.61
C2: Coordinates: | D2: 8V580636 6914064 | E2: 2004 Surface Elevation ( m amsl): | F2: 1031.52
A3: Surface Protector: | B3: yes | C3: Date Installed: | D3: 1996 | E3: Tip Elevation (m amsl): | F3: 1022.352
E4: Screened Interval (m bgs): | F4: 7.78 - 9.30 | K4: Ground Surface | L4: Bottom of Slotted Section | M4: Top of Slotted Section
A5: Date | C5: Water level from top of pipe (m) | D5: Piezometric Elevation (m amsl) | E5: Pond El. (m amsl) | F5: Comments | J5: 2000-09-01 | K5: 1031.52 | L5: =F2-9.17 -> 1022.35 | M5: =F2-7.65 -> 1023.87
A6: 2001-09-11 | C6: 1.58 | D6: 1030.632 | J6: 2012-12-31 | K6: 1031.52 | L6: =L5 -> 1022.35 | M6: =M5 -> 1023.87
A7: 2002-06-10 | C7: 2.39 | D7: 1029.822
A8: 2002-09-23 | C8: 2.06 | D8: 1030.152 | E8: =1079.487-32.3 -> 1047.187 | J8: 36770
A9: 2003-06-11 | C9: 1.61 | D9: 1030.602 | J9: 38353
A10: 2003-09-10 | C10: 3.075 | D10: 1029.137
A11: 2004-05-10 | C11: 1.7 | D11: =F$2+F$1-C11 -> 1030.43 | F11: 2004 survey info used from here on
A12: 2004-07-08 | C12: 1.82 | D12: 1030.31
A13: 2004-07-19 | C13: 2.07 | D13: 1030.06
A14: ='91-ID3(TH-37)'!A36 -> 2004-09-09 | C14: 2.455 | D14: 1029.675 | F14: Dirty, strong sulphur smell
A15: ='91-ID3(TH-37)'!A37 -> 2005-05-26 | C15: 3.285 | D15: 1028.845 | F15: ph=6.7, temp=9.0C
A16: ='91-ID3(TH-37)'!A38 -> 2005-09-14 | C16: 3.96 | D16: 1028.17 | F16: ph=6.8, temp=6.4C
A17: 2006-03-09 | C17: 4.38 | D17: 1027.75
A18: 2006-03-27 | C18: 4.07 | D18: 1028.06
A19: 2006-06-14 | C19: 4.06 | D19: 1028.07
A20: 2006-10-02 | C20: 4.14 | D20: 1027.99
A21: 2007-05-22 | C21: 2.445 | D21: =F$2+F$1-C21 -> 1029.685 | E21: 1046.781 | F21: No Beep, frozen
A22: 2007-09-26 | C22: 4.01 | D22: 1028.12 | E22: 1047.781
A23: 2008-05-20 | C23: 1.85 | D23: 1030.28 | F23: No Beep, frozen
A24: 2008-06-11 | C24: 2.71 | D24: 1029.42
A25: 2008-09-24 | C25: 3.115 | D25: 1029.015
A26: 2009-06-29 | C26: 3.92 | D26: 1028.21 | E26: 1046.48
A27: 2009-09-30 | C27: 2.756 | D27: =F$2+F$1-C27 -> 1029.374 | E27: 1046.048
A28: 2010-05-15 | C28: 2.766 | D28: =F$2+F$1-C28 -> 1029.364 | E28: 1046.269
A29: 2010-06-02 | C29: 3.187 | D29: =F$2+F$1-C29 -> 1028.943 | E29: 1045.94
A30: 2010-09-10 | C30: 4.395 | D30: =F$2+F$1-C30 -> 1027.735 | E30: 1043.726
A31: Note: Data until end of 2009 as compiled in BGC 2009 Annual Geotechnical Evaluation and Instrumentation Review; 2010 Data compiled by DES

Sheet P01-04(A&B)(Th-47)
A1: P01-04 | C1: Location: | D1: Intermediate Dam Toe | E1: 2004 Stick Up - A (m): | F1: 0.45
C2: Coordinates: | D2: 8V580489 6913888 | E2: 2004 Stick Up -B (m): | F2: 0.45
A3: Surface Protector: | B3: yes | C3: Date Installed: | D3: 1996 | E3: 2004 Surface Elevation ( m amsl): | F3: 1032.32
C4: Screened Interval -A (m bgs): | D4: 31.7 - 33.22 | E4: Tip Elevation - A (m amsl): | F4: 998.17 | J4: Ground Surface | K4: Bottom of Slotted Section (A) | L4: Bottom of Slotted Section (B)
C5: Screened Interval - B (m bgs): | D5: 51.0 - 52.5 | E5: Tip Elevation - B (m amsl): | F5: 978.89 | I5: 2001-01-01 | J5: =F3 -> 1032.32 | K5: 998.17 | L5: 978.89
A6: Date | B6: Water level from top of pipe (m) | D6: Piezometric Elevation (m amsl) | F6: Comments | I6: 2010-12-31 | J6: =F3 -> 1032.32 | K6: 998.17 | L6: 978.89
B7: A | C7: B | D7: A | E7: B
A8: 2001-09-11 | B8: 0.78 | C8: 0.43 | D8: 1031.12 | E8: 1031.46
A9: 2002-06-10 | B9: 1.67 | C9: 1.29 | D9: 1030.23 | E9: 1030.6
A10: 2002-09-23 | B10: 1.39 | C10: 1 | D10: 1030.51 | E10: 1030.89
A11: ='P01-03A(TH-46)'!A9 -> 2003-06-11 | B11: 1.45 | C11: 1.03 | D11: 1030.45 | E11: 1030.86 | I11: 36892
A12: ='P01-03A(TH-46)'!A10 -> 2003-09-10 | B12: 2.35 | C12: 1.9 | D12: 1029.55 | E12: 1029.99
A13: 2004-05-10 | B13: 1.25 | C13: 1.17 | D13: =$F$3+$F$1-B13 -> 1031.52 | E13: =$F$3+$F$2-C13 -> 1031.6 | F13: 2004 survey info used from this point on
A14: 2004-07-08 | B14: 1.18 | C14: 0.755 | D14: 1031.59 | E14: 1032.015
A15: 2004-07-19 | B15: 1.42 | C15: 0.99 | D15: 1031.35 | E15: 1031.78
A16: ='91-ID3(TH-37)'!A36 -> 2004-09-09 | B16: 1.825 | C16: 1.4 | D16: 1030.945 | E16: 1031.37
A17: ='91-ID3(TH-37)'!A37 -> 2005-05-26 | B17: 0.53 | C17: 0.6 | D17: 1032.24 | E17: 1032.17 | F17: bottom, no beep
A18: ='91-ID3(TH-37)'!A38 -> 2005-09-14 | B18: 2.69 | C18: 3.215 | D18: 1030.08 | E18: 1029.555
A19: 2006-03-09 | B19: 1.99 | C19: 3.71 | D19: 1030.78 | E19: 1029.06
A20: 2006-03-27 | B20: 1.99 | C20: 3.42 | D20: 1030.78 | E20: 1029.35 | F20: bottom
A21: 2006-06-14 | B21: 1.985 | C21: 2.595 | D21: 1030.785 | E21: 1030.175 | F21: bottom
A22: 2006-10-02 | B22: 2.85 | C22: 3.4 | D22: 1029.92 | E22: 1029.37
A23: 2007-05-22 | B23: 0.82 | C23: 2.13 | D23: =$F$3+$F$1-B23 -> 1031.95 | E23: =$F$3+$F$2-C23 -> 1030.64 | F23: a-beep, b-frozen no beep
A24: 2007-09-26 | B24: 2.445 | C24: 3 | D24: 1030.325 | E24: 1029.77
A25: 2008-05-20 | B25: 0.685 | C25: 1.56 | D25: 1032.085 | E25: 1031.21 | F25: b-no beep, frozen
A26: 2008-06-11 | B26: 1.39 | C26: 1.93 | D26: 1031.38 | E26: 1030.84
A27: 2008-09-24 | B27: 1.645 | C27: 2.26 | D27: 1031.125 | E27: 1030.51
A28: 2009-06-29 | B28: 2.44 | C28: 3.04 | D28: 1030.33 | E28: 1029.73
A29: 2009-09-30 | B29: 1.365 | C29: 1.845 | D29: =$F$3+$F$1-B29 -> 1031.405 | E29: =$F$3+$F$2-C29 -> 1030.925
A30: 2010-05-15 | B30: 1.595 | C30: 2.041 | D30: =$F$3+$F$1-B30 -> 1031.175 | E30: =$F$3+$F$2-C30 -> 1030.729
A31: 2010-06-02 | B31: 1.779 | C31: 2.052 | D31: =$F$3+$F$1-B31 -> 1030.991 | E31: =$F$3+$F$2-C31 -> 1030.718
A32: 2010-09-10 | B32: 3.5 | C32: 2.95 | D32: =$F$3+$F$1-B32 -> 1029.27 | E32: =$F$3+$F$2-C32 -> 1029.82
A33: Note: Data until end of 2009 as compiled in BGC 2009 Annual Geotechnical Evaluation and Instrumentation Review; 2010 Data compiled by DES

Sheet BKS04-06(TH-48)
A1: BKS04-06 | C1: Location: | D1: Intermediate Dam South Abutment | E1: 2004 Stick-Up (m): | F1: 1.50812
C2: Coordinates: | D2: N 6913803 E 580454.9 | E2: Tip Elevation (m amsl): | F2: 1036
A3: Surface Protector: | B3: yes | C3: Date Installed: | D3: 1996 | E3: 2004 Surface Elevation ( m amsl): | F3: 1049.1
E4: Screened Interval (m bgs): | F4: 12.8 - 13.1 | K4: Ground Surface | L4: Bottom of Slotted Section | M4: Top of Slotted Section
A5: Date | B5: Water level from top of pipe (m) | D5: Piezometric Elevation (m amsl) | E5: Pond El. (m amsl) | F5: Comments | J5: 2003-01-01 | K5: 1049.1 | L5: 1036 | M5: 1036.3
A6: 2005-05-26 | B6: 13.01 | D6: =$F$3+$F$1-B6 -> 1037.59812 | J6: 2011-12-31 | K6: 1049.1 | L6: 1036 | M6: 1036.3
A7: 2005-09-14 | B7: 14.15 | D7: 1036.45812 | F7: bottom - no beep
A8: 2006-03-09 | B8: 13.87 | D8: 1036.73812
A9: 2006-03-27 | B9: 13.035 | D9: 1037.57312 | F9: no beep
A10: 2006-06-14 | B10: 14.14 | D10: 1036.46812 | F10: sticky at 11.0m
A11: 2006-10-02 | B11: 14.11 | D11: 1036.49812
A12: 2007-05-22 | B12: 13.855 | D12: =$F$3+$F$1-B12 -> 1036.75312 | E12: 1046.781 | F12: Bottom no beep
A13: 2007-09-26 | B13: 14.15 | D13: =$F$3+$F$1-B13 -> 1036.45812 | F13: no beep
A14: 2008-05-20 | B14: 1.82 | F14: no beep
A15: 2008-06-11 | B15: 1.79 | F15: no beep
A16: 2008-09-24 | B16: 14.16 | D16: =$F$3+$F$1-B16 -> 1036.44812 | F16: no beep
A17: 2009-06-29 | B17: 14.165 | D17: 1036.44312 | F17: beeped
A18: 2009-09-30 | B18: 14.265 | D18: 1036.34312 | F18: no beep
A19: 2010-05-15 | B19: 1.935 | E19: 1046.269 | F19: Stuck in slush; No beep
A20: 2010-06-02 | B20: 14.17 | D20: 1036.43812 | E20: 1045.94
A21: 2010-09-10 | B21: 13.875 | E21: 1043.726 | F21: Stuck in slush; No beep
A22: Note: Data until end of 2009 as compiled in BGC 2009 Annual Geotechnical Evaluation and Instrumentation Review; 2010 Data compiled by DES

Sheet BKS04-07(TH-49)
A1: BKS04-07 | C1: Location: | D1: Intermediate Dam South Abutment | E1: 2004 Stick-Up (m): | F1: 1.51
C2: Coordinates: | D2: N 6913747 E 580407.6 | E2: Tip Elevation (m amsl): | F2: 1037.29
A3: Surface Protector: | B3: yes | C3: Date Installed: | D3: 1996 | E3: 2004 Surface Elevation ( m amsl): | F3: 1049.2
E4: Screened Interval (m bgs): | F4: 11.5 - 11.81 | K4: Ground Surface | L4: Bottom of Slotted Section | M4: Top of Slotted Section
A5: Date | C5: Water level from top of pipe (m) | D5: Piezometric Elevation (m amsl) | E5: Pond El. (m amsl) | F5: Comments | J5: 2003-01-01 | K5: 1049.2 | L5: 1037.29 | M5: 1037.6
A6: 2005-05-26 | C6: 14.155 | F6: Impossible reading | J6: 2009-12-31 | K6: 1049.2 | L6: 1037.29 | M6: 1037.6
A7: 2005-09-14 | C7: 12.99 | D7: =F$3+F$1-C7 -> 1037.72
A8: 2006-03-09 | C8: 13.03 | D8: =F$3+F$1-C8 -> 1037.68
A9: 2006-03-27 | C9: 14.16 | D9: =F$3+F$1-C9 -> 1036.55 | F9: no beep
A10: 2006-06-14 | C10: 13.02 | D10: =F$3+F$1-C10 -> 1037.69 | F10: sticky at 12.7 m
A11: 2006-10-02 | C11: 13.01 | D11: =F$3+F$1-C11 -> 1037.7
A12: 2007-05-22 | C12: 2.03 | E12: 1046.781 | F12: no beep, frozen
A13: 2007-09-26 | C13: 13.025 | D13: =F$3+F$1-C13 -> 1037.685 | E13: 1047.781
A14: 2008-05-20 | C14: 1.99 | F14: no beep
A15: 2008-06-11 | C15: 2.89 | F15: no beep
A16: 2008-09-24 | C16: 13.405 | D16: =F$3+F$1-C16 -> 1037.305
A17: 2009-06-29 | C17: 3.58 | F17: blocked
A18: 2009-09-30 | C18: 13.053 | D18: =F$3+F$1-C18 -> 1037.657 | E18: 1046.048
A19: 2010-05-15 | C19: 13.081 | D19: =F$3+F$1-C19 -> 1037.629 | E19: 1046.269
A20: 2010-06-02 | E20: 1045.94 | F20: Hit something solid - either ground or ice.
A21: 2010-09-10 | C21: 12.785 | D21: =F$3+F$1-C21 -> 1037.925 | E21: 1043.726 | F21: Hit something solid - probably ground; No beep.
A22: Note: Data until end of 2009 as compiled in BGC 2009 Annual Geotechnical Evaluation and Instrumentation Review; 2010 Data compiled by DES
